bitfinex/quotes_SOLUSD_20250318
["timestamp","ask_amount","ask_price","bid_price","bid_amount"]
[1742326842311,13.74041732,124.33,124.31,28.0441]
[1742326842493,13.74041732,124.32,124.31,28.0441]
[1742326846525,13.74041732,124.32,124.3,8.0448]
[1742326846745,13.74041732,124.31,124.3,8.0448]
[1742326847055,13.74041732,124.31,124.29,8.0454]
[1742326847208,20.74041732,124.31,124.29,8.0454]
[1742326848035,13.74041732,124.3,124.29,8.0454]
[1742326848424,90.23608024,124.34,124.3,20.0]
[1742326848629,13.74041732,124.32,124.3,20.0]
[1742326849840,13.74041732,124.31,124.3,20.0]
[1742326850419,13.74041732,124.31,124.3,28.045]
[1742326850844,13.74041732,124.32,124.3,28.045]
[1742326852737,13.74041732,124.31,124.3,28.045]
[1742326857137,0.03,124.32,124.3,28.045]
[1742326857317,13.77041732,124.32,124.3,28.045]
[1742326864612,13.74041732,124.31,124.3,28.045]
[1742326865620,13.74041732,124.31,124.3,20.0]
[1742326867244,13.74041732,124.31,124.27,0.063]
[1742326867423,13.74041732,124.28,124.27,8.1096]
[1742326869131,13.74041732,124.28,124.27,20.063]
[1742326869843,13.74041732,124.29,124.28,20.0]
[1742326870144,20.74041732,124.3,124.28,20.0]
[1742326871538,20.74041732,124.3,124.29,8.0456]
[1742326876557,20.74041732,124.3,124.29,8.0456]
[1742326876846,20.74041732,124.3,124.29,8.1086]
[1742326877068,13.74041732,124.3,124.29,8.1086]
[1742326878030,13.74041732,124.3,124.27,0.063]
[1742326878329,13.74041732,124.28,124.27,0.063]
[1742326879635,13.74041732,124.29,124.27,0.063]
[1742326879946,13.74041732,124.28,124.27,0.063]
[1742326880145,13.74041732,124.28,124.27,20.063]
[1742326881749,13.74041732,124.28,124.27,28.1099]
[1742326886247,13.74041732,124.29,124.27,28.1099]
[1742326886440,81.6,124.31,124.27,48.2273]
[1742326886645,13.74041732,124.29,124.27,48.2273]
[1742326887749,13.74041732,124.28,124.27,28.1099]
[1742326888766,13.74041732,124.29,124.27,48.2273]
[1742326889063,0.03,124.3,124.27,61.96771732]
[1742326891673,13.77041732,124.3,124.27,48.2273]
[1742326892464,0.03,124.3,124.27,48.2273]
[1742326892768,13.77041732,124.3,124.27,48.2273]
[1742326893552,13.74041732,124.29,124.27,48.2273]
[1742326894453,13.77041732,124.3,124.27,48.2273]
[1742326894652,13.72902298,124.3,124.27,48.2273]
[1742326898072,13.74041732,124.31,124.27,48.2273]
[1742326903376,13.74041732,124.3,124.27,48.2273]
[1742326910178,13.74041732,124.29,124.27,48.2273]
[1742326910556,13.74041732,124.3,124.27,48.2273]
[1742326910759,13.74041732,124.31,124.27,48.2273]
[1742326912179,0.03,124.32,124.27,109.74851732]
[1742326912376,0.03,124.32,124.31,20.0]
[1742326913557,0.03,124.32,124.31,28.0444]
[1742326919081,13.77041732,124.32,124.31,28.0444]
[1742326920975,0.03,124.32,124.31,28.0444]
[1742326923186,0.03,124.32,124.31,28.0444]
[1742326926590,13.77041732,124.32,124.31,28.0444]
[1742326943804,13.77041732,124.32,124.3,8.1076]
[1742326943996,13.74041732,124.31,124.3,8.1076]
[1742326945303,13.74041732,124.31,124.3,20.063]
[1742326947611,13.74041732,124.31,124.3,28.108]
[1742326947789,13.74041732,124.31,124.3,20.063]
[1742326948108,20.74041732,124.31,124.3,0.063]
[1742326948509,0.14216157,124.3,124.27,0.063]
[1742326948705,13.74041732,124.28,124.25,8.0482]
[1742326949005,13.74041732,124.26,124.25,8.0482]
[1742326949592,13.74041732,124.26,124.24,8.0489]
[1742326951006,13.74041732,124.27,124.26,20.0]
[1742326951310,1.67806157,124.3,124.24,28.1712]
[1742326951311,13.74041732,124.28,124.24,28.1712]
[1742326951513,13.74041732,124.27,124.26,20.0]
[1742326951812,13.74041732,124.27,124.26,28.0476]
[1742326953808,12.98961732,124.27,124.26,28.0476]
[1742326960918,13.05261732,124.27,124.26,28.0476]
[1742326961715,13.05261732,124.27,124.26,20.0]
[1742326962119,13.05261732,124.27,124.26,8.0476]
[1742326962315,13.05261732,124.27,124.26,20.0]
[1742326962511,0.063,124.27,124.26,20.0]
[1742326962816,13.80341732,124.27,124.24,8.0489]
[1742326963022,13.74041732,124.25,124.24,20.0]
[1742326965013,13.74041732,124.25,124.24,28.0489]
[1742326972736,13.74041732,124.25,124.24,28.0789]
[1742326976645,20.80341732,124.27,124.24,28.0789]
[1742326976822,0.063,124.27,124.24,61.94161732]
[1742326977639,0.063,124.27,124.24,48.2012]
[1742326977838,0.063,124.27,124.24,61.94161732]
[1742326980227,0.17216157,124.32,124.26,13.74041732]
[1742326980429,13.74041732,124.3,124.26,13.74041732]
[1742326980622,13.74041732,124.3,124.28,20.0]
[1742326981324,13.74041732,124.3,124.29,8.0456]
[1742326981922,0.03,124.32,124.29,8.0456]
[1742326982323,13.74041732,124.31,124.29,8.0456]
[1742326985440,0.03,124.32,124.31,28.0444]
[1742326986730,13.77041732,124.32,124.31,28.0444]
[1742326992628,0.03,124.32,124.31,28.0444]
[1742326993438,13.77041732,124.35,124.31,48.1554]
[1742326993643,13.77041732,124.35,124.31,49.36161303]
[1742326994227,0.03,124.35,124.34,20.0]
[1742326995437,0.03,124.35,124.34,28.0424]
[1742326998945,13.77041732,124.35,124.34,20.0]
[1742327000258,13.77041732,124.35,124.34,28.0424]
[1742327000553,13.77041732,124.35,124.34,20.0]
[1742327000756,13.77041732,124.35,124.32,8.0437]
[1742327000926,13.77041732,124.35,124.31,8.0444]
[1742327000927,13.74041732,124.33,124.31,8.0444]
[1742327001133,13.74041732,124.32,124.31,8.0444]
[1742327001833,13.74041732,124.32,124.3,8.045]
[1742327002033,13.74041732,124.31,124.3,8.045]
[1742327003250,13.74041732,124.31,124.29,28.1593]
[1742327003554,13.74041732,124.31,124.29,8.0456]
[1742327003765,13.74041732,124.3,124.29,8.0456]
[1742327004457,13.74041732,124.31,124.29,8.0456]
[1742327004688,13.74041732,124.31,124.3,20.0]
[1742327005247,0.42648471,124.34,124.31,20.0]
[1742327005447,13.74041732,124.32,124.31,20.0]
[1742327012456,13.74041732,124.32,124.3,0.063]
[1742327012666,20.72041732,124.31,124.3,0.063]
[1742327014064,30.40089756,124.31,124.3,0.063]
[1742327015940,30.40089756,124.31,124.24,8.0789]
[1742327015941,0.42648471,124.3,124.24,8.0789]
[1742327016143,13.74041732,124.25,124.24,8.0789]
[1742327017368,13.74041732,124.26,124.25,20.0]
[1742327019455,13.74041732,124.26,124.24,0.03]
[1742327021270,20.72041732,124.27,124.24,0.03]
[1742327022174,13.74041732,124.26,124.24,0.03]
[1742327023652,6.98,124.27,124.24,0.03]
[1742327023653,13.74041732,124.25,124.24,0.03]
[1742327024688,13.74041732,124.26,124.24,0.03]
[1742327028372,13.74041732,124.25,124.24,0.03]
[1742327029781,13.74041732,124.26,124.24,0.03]
[1742327031388,6.98,124.27,124.24,0.03]
[1742327031690,13.74041732,124.29,124.24,13.77041732]
[1742327031863,13.74041732,124.29,124.25,28.1689]
[1742327032569,13.74041732,124.29,124.25,68.4103]
[1742327034714,13.74041732,124.28,124.25,68.4103]
[1742327035265,13.74041732,124.28,124.25,28.1689]
[1742327036391,13.74041732,124.28,124.25,20.1207]
[1742327036977,13.74041732,124.27,124.25,20.1207]
[1742327037192,13.74041732,124.26,124.24,8.0789]
[1742327037487,13.74041732,124.25,124.24,8.0789]
[1742327038393,13.74041732,124.26,124.25,20.0]
[1742327038975,13.74041732,124.27,124.25,20.0]
[1742327039183,0.42648471,124.29,124.25,20.0]
[1742327039384,13.74041732,124.26,124.25,20.0]
[1742327039591,13.74041732,124.26,124.25,28.0482]
[1742327039893,13.74041732,124.27,124.25,28.0482]
[1742327040482,13.74041732,124.26,124.25,28.0482]
[1742327043195,12.74041732,124.26,124.25,28.0482]
[1742327043389,13.74041732,124.27,124.25,28.0482]
[1742327048779,13.74041732,124.26,124.25,28.0482]
[1742327053286,20.72041732,124.26,124.24,8.0786]
[1742327053502,13.74041732,124.25,124.24,8.0786]
[1742327053705,13.74041732,124.25,124.24,0.03]
[1742327058195,77.17677131,124.25,124.24,0.03]
[1742327058496,78.38636684,124.25,124.24,0.03]
[1742327059004,28.38141043,124.24,124.23,0.03]
[1742327059180,42.12182775,124.24,124.23,0.03]
[1742327059500,34.07292775,124.24,124.23,0.03]
[1742327063595,35.28252328,124.24,124.23,0.03]
[1742327063794,35.70900799,124.24,124.23,0.03]
[1742327066713,43.75790799,124.24,124.23,0.03]
[1742327066888,0.42648471,124.22,124.21,0.03]
[1742327067090,15.37649756,124.22,124.21,0.03]
[1742327069289,0.42648471,124.2,124.16,8.0838]
[1742327069483,13.88257889,124.18,124.15,20.03]
[1742327069680,13.88257889,124.18,124.15,0.03]
[1742327069681,6.98,124.17,124.15,0.03]
[1742327070597,6.98,124.17,124.15,8.0844]
[1742327070798,13.74041732,124.16,124.15,0.03]
[1742327071504,6.98,124.17,124.15,0.03]
[1742327073495,13.74041732,124.18,124.15,0.03]
[1742327073896,13.74041732,124.17,124.15,0.03]
[1742327080125,13.74041732,124.18,124.16,20.0]
[1742327080702,6.98,124.19,124.16,20.0]
[1742327080909,20.72041732,124.19,124.16,20.0]
[1742327081112,13.74041732,124.19,124.16,20.0]
[1742327081302,0.42648471,124.22,124.16,20.0]
[1742327081512,13.74041732,124.2,124.16,20.0]
[1742327081918,13.74041732,124.2,124.17,28.187]
[1742327082105,13.74041732,124.19,124.17,28.187]
[1742327082928,13.74041732,124.2,124.17,28.187]
[1742327083425,13.74041732,124.19,124.17,28.187]
[1742327090218,13.74041732,124.18,124.17,28.187]
[1742327092432,13.74041732,124.18,124.17,8.0534]
[1742327093116,13.74041732,124.18,124.17,8.0834]
[1742327094225,13.80341732,124.19,124.17,8.0834]
[1742327095312,0.063,124.19,124.17,8.0834]
[1742327095512,13.80341732,124.19,124.17,8.0834]
[1742327095930,0.063,124.19,124.17,8.0834]
[1742327099033,13.80341732,124.19,124.17,8.0834]
[1742327099633,0.063,124.19,124.17,8.0834]
[1742327100529,13.74041732,124.22,124.17,83.85001732]
[1742327100733,13.74041732,124.23,124.18,13.74041732]
[1742327100939,13.74041732,124.23,124.19,13.74041732]
[1742327101250,20.72041732,124.24,124.19,13.74041732]
[1742327101706,13.74041732,124.23,124.19,13.74041732]
[1742327101910,13.74041732,124.23,124.2,28.1803]
[1742327102105,226.90041732,124.25,124.2,82.17831732]
[1742327102332,13.74041732,124.25,124.21,13.74041732]
[1742327102531,20.78341732,124.26,124.21,13.74041732]
[1742327102911,13.80341732,124.26,124.21,13.74041732]
[1742327103520,13.74041732,124.25,124.21,13.74041732]
[1742327103834,13.74041732,124.25,124.23,20.0]
[1742327104135,13.74041732,124.25,124.24,8.0489]
[1742327105512,13.74041732,124.25,124.23,20.0]
[1742327105712,13.74041732,124.24,124.23,28.0495]
[1742327106232,13.74041732,124.24,124.2,20.1281]
[1742327106428,13.74041732,124.22,124.2,20.1281]
[1742327106628,13.74041732,124.22,124.21,8.0508]
[1742327108136,13.74041732,124.22,124.2,20.1281]
[1742327108331,13.74041732,124.23,124.2,20.1281]
[1742327109626,13.74041732,124.24,124.2,20.1281]
[1742327109833,20.78341732,124.25,124.2,33.86851732]
[1742327110028,13.80341732,124.25,124.2,33.86851732]
[1742327110427,13.80341732,124.25,124.2,41.92001732]
[1742327110631,13.80341732,124.25,124.2,82.17761732]
[1742327111421,13.80341732,124.25,124.23,20.0]
[1742327111743,0.063,124.25,124.23,20.0]
[1742327111920,13.80341732,124.25,124.23,20.0]
[1742327112433,13.80341732,124.25,124.24,8.0489]
[1742327112434,0.063,124.25,124.24,8.0489]
[1742327113712,0.063,124.26,124.24,8.0489]
[1742327117140,20.72041732,124.29,124.24,83.36320434]
[1742327117339,13.74041732,124.28,124.24,69.62278702]
[1742327117526,13.74041732,124.28,124.24,68.4158]
[1742327117837,13.74041732,124.27,124.26,20.0]
[1742327118641,13.74041732,124.27,124.24,8.0489]
[1742327118941,13.74041732,124.25,124.24,8.0489]
[1742327120141,13.74041732,124.25,124.22,20.1248]
[1742327120343,13.74041732,124.24,124.22,20.1248]
[1742327122126,13.74041732,124.23,124.21,8.0508]
[1742327122451,8.3317571,124.26,124.21,28.178]
[1742327122452,13.74041732,124.24,124.21,28.178]
[1742327122823,13.74041732,124.25,124.21,28.178]
[1742327123025,13.74041732,124.25,124.21,41.91841732]
[1742327123240,20.72041732,124.26,124.24,20.0]
[1742327124133,20.72041732,124.26,124.25,8.0482]
[1742327130336,6.98,124.26,124.25,8.0482]
[1742327130544,20.72041732,124.26,124.25,8.0482]
[1742327133055,20.72041732,124.26,124.24,28.0786]
[1742327133257,13.74041732,124.25,124.24,28.0786]
[1742327133558,13.74041732,124.25,124.24,0.03]
[1742327135955,14.16690203,124.25,124.24,0.03]
[1742327136359,77.17677131,124.25,124.24,0.03]
[1742327136549,22.21510203,124.25,124.24,0.03]
[1742327136736,14.16690203,124.25,124.24,0.03]
[1742327141047,13.88257889,124.25,124.24,0.03]
[1742327141247,14.16690203,124.25,124.24,0.03]
[1742327142960,13.88257889,124.25,124.24,0.03]
[1742327143359,13.74041732,124.25,124.24,0.03]
[1742327147462,13.74041732,124.25,124.24,0.03]
[1742327151575,13.88257889,124.25,124.24,0.03]
[1742327153073,14.16690203,124.25,124.24,0.03]
[1742327159188,13.88257889,124.25,124.24,0.03]
[1742327160383,0.20516157,124.26,124.24,0.03]
[1742327160587,13.74041732,124.25,124.24,0.03]
[1742327162785,0.20516157,124.26,124.24,0.03]
[1742327162786,13.94557889,124.26,124.24,0.03]
[1742327163083,13.74041732,124.25,124.24,0.03]
[1742327163483,0.20516157,124.26,124.24,0.03]
[1742327163678,13.74041732,124.25,124.24,0.03]
[1742327163887,13.94557889,124.26,124.24,0.03]
[1742327164375,13.74041732,124.25,124.24,0.03]
[1742327166689,18.08627093,124.29,124.24,63.56691732]
[1742327166878,18.08627093,124.29,124.24,83.68921732]
[1742327167693,0.063,124.29,124.24,83.68921732]
[1742327167890,13.80341732,124.29,124.24,83.68921732]
[1742327168192,13.80341732,124.29,124.24,123.93381732]
[1742327168794,13.80341732,124.29,124.24,83.68921732]
[1742327168994,0.063,124.29,124.26,13.74041732]
[1742327169196,0.063,124.29,124.27,33.74041732]
[1742327169387,0.0001,124.3,124.28,13.74041732]
[1742327169692,0.0001,124.3,124.29,15.35301732]
[1742327169878,0.0001,124.3,124.29,1.6126]
[1742327170901,0.0001,124.3,124.29,9.6582]
[1742327171971,0.0001,124.3,124.29,8.0456]
[1742327173893,13.74051732,124.3,124.28,8.0463]
[1742327174393,13.74051732,124.3,124.26,8.0476]
[1742327174700,13.74041732,124.27,124.25,8.0479]
[1742327174894,15.0252,124.3,124.25,8.0479]
[1742327174895,13.74041732,124.26,124.25,8.0479]
[1742327175502,13.74041732,124.26,124.24,8.0786]
[1742327175682,13.74041732,124.25,124.24,8.0786]
[1742327176088,18.933972,124.29,124.24,8.0786]
[1742327176089,0.28432314,124.28,124.24,8.0786]
[1742327176293,13.74041732,124.25,124.24,0.03]
[1742327176703,13.74041732,124.27,124.26,20.0]
[1742327176999,13.74041732,124.28,124.26,20.0]
[1742327177898,13.74041732,124.27,124.26,20.0]
[1742327178275,13.74041732,124.27,124.26,28.0476]
[1742327180774,13.74041732,124.27,124.26,8.0476]
[1742327181508,13.74041732,124.27,124.25,8.048]
[1742327181682,13.74041732,124.26,124.25,8.048]
[1742327182082,13.74041732,124.26,124.24,0.03]
[1742327182379,13.74041732,124.25,124.24,0.03]
[1742327184096,13.74041732,124.25,124.24,20.03]
[1742327184986,13.74041732,124.25,124.24,0.03]
[1742327189514,69.12857131,124.25,124.24,0.03]
[1742327189686,78.38636684,124.25,124.24,0.03]
[1742327190217,70.33816684,124.25,124.24,0.03]
[1742327190420,13.74041732,124.25,124.24,0.03]
[1742327191396,14.16690203,124.25,124.24,0.03]
[1742327191602,69.12857131,124.25,124.24,0.03]
[1742327192798,95.96858174,124.25,124.24,0.03]
[1742327193894,13.74041732,124.2,124.19,0.03]
[1742327194095,13.74041732,124.21,124.2,20.0]
[1742327196322,13.74041732,124.21,124.2,28.0515]
[1742327197519,13.74041732,124.21,124.2,8.0515]
[1742327197899,13.74041732,124.21,124.19,8.0818]
[1742327198113,13.74041732,124.2,124.19,8.0818]
[1742327198618,13.74041732,124.2,124.19,20.03]
[1742327199205,13.74041732,124.2,124.19,0.03]
[1742327202224,13.74041732,124.21,124.19,0.03]
[1742327204829,13.74041732,124.2,124.19,0.03]
[1742327205724,13.64095159,124.23,124.19,0.03]
[1742327205927,7.12216157,124.23,124.19,0.03]
[1742327206128,13.74041732,124.21,124.19,0.03]
[1742327206626,0.42648471,124.23,124.19,0.03]
[1742327206926,13.74041732,124.2,124.19,0.03]
[1742327208823,6.51790806,124.23,124.19,0.03]
[1742327209133,13.74041732,124.2,124.19,0.03]
[1742327209729,14.16690203,124.2,124.19,0.03]
[1742327212636,13.74041732,124.2,124.19,0.03]
[1742327217027,13.74041732,124.2,124.19,8.0821]
[1742327218519,13.74041732,124.2,124.19,0.03]
[1742327224140,13.74041732,124.21,124.19,0.03]
[1742327224732,13.74041732,124.21,124.19,8.0821]
[1742327226936,20.72041732,124.22,124.19,28.2125]
[1742327227647,13.74041732,124.21,124.19,28.2125]
[1742327230655,13.74041732,124.22,124.21,20.0]
[1742327230833,13.74041732,124.22,124.21,28.0508]
[1742327231032,7.01,124.24,124.21,28.0508]
[1742327231241,13.74041732,124.23,124.21,28.0508]
[1742327231733,0.03,124.24,124.21,48.178]
[1742327232329,13.77041732,124.24,124.21,48.178]
[1742327232538,13.74041732,124.23,124.21,48.178]
[1742327233436,13.77041732,124.24,124.21,48.178]
[1742327233855,13.74041732,124.23,124.21,48.178]
[1742327235959,13.77041732,124.24,124.21,48.178]
[1742327236157,13.74041732,124.23,124.21,48.178]
[1742327237264,13.77041732,124.24,124.21,48.178]
[1742327242874,0.03,124.24,124.22,13.74041732]
[1742327243050,0.03,124.24,124.22,15.27611732]
[1742327243380,0.03,124.24,124.23,8.0495]
[1742327244151,13.77041732,124.24,124.23,8.0495]
[1742327245246,13.77041732,124.24,124.22,8.0502]
[1742327245448,0.03,124.24,124.22,8.0502]
[1742327245871,13.77041732,124.24,124.22,8.0502]
[1742327248296,13.74041732,124.23,124.22,8.0502]
[1742327249082,13.74041732,124.23,124.21,28.0507]
[1742327249289,13.74041732,124.22,124.21,28.0507]
[1742327250382,13.74041732,124.23,124.21,28.0507]
[1742327250559,12.93021732,124.23,124.21,28.0507]
[1742327250877,13.74041732,124.23,124.21,28.0507]
[1742327251057,20.75041732,124.24,124.21,28.0507]
[1742327252675,13.74041732,124.23,124.21,28.0507]
[1742327257182,13.74041732,124.23,124.21,8.0507]
[1742327258873,13.74041732,124.23,124.2,8.0515]
[1742327260459,7.01,124.24,124.2,8.0515]
[1742327260678,13.74041732,124.23,124.2,8.0515]
[1742327261361,7.01,124.24,124.2,8.1145]
[1742327261571,13.74041732,124.23,124.2,8.1145]
[1742327261883,20.75041732,124.24,124.2,28.2433]
[1742327262592,13.74041732,124.23,124.2,28.2433]
[1742327266988,7.01,124.24,124.2,68.5009]
[1742327267170,0.03,124.24,124.23,20.0]
[1742327268989,0.03,124.26,124.23,28.0495]
[1742327269173,0.03,124.26,124.23,44.55718254]
[1742327269773,13.74041732,124.29,124.24,13.74041732]
[1742327270191,0.0001,124.3,124.26,13.74041732]
[1742327270385,0.0001,124.3,124.27,13.74041732]
[1742327270973,0.0001,124.3,124.28,8.0463]
[1742327271789,13.74041732,124.29,124.28,8.0463]
[1742327271992,13.74041732,124.29,124.27,8.0469]
[1742327275086,13.74041732,124.28,124.26,28.0474]
[1742327275989,0.0001,124.3,124.26,20.0]
[1742327275990,13.74041732,124.27,124.26,20.0]
[1742327276579,13.74041732,124.27,124.26,28.0476]
[1742327278305,20.72041732,124.29,124.26,28.0476]
[1742327278607,20.72041732,124.29,124.26,48.1667]
[1742327279285,6.98,124.29,124.26,48.1667]
[1742327279781,13.74051732,124.3,124.26,48.1667]
[1742327280397,0.0001,124.3,124.26,61.90711732]
[1742327280582,13.74051732,124.3,124.26,61.90711732]
[1742327280906,13.74051732,124.3,124.26,48.1667]
[1742327281076,0.0001,124.3,124.26,48.1667]
[1742327281280,0.0001,124.3,124.27,33.59677081]
[1742327281481,0.0001,124.3,124.28,13.74041732]
[1742327281903,0.0001,124.3,124.29,20.0]
[1742327283298,0.0001,124.32,124.29,82.51635089]
[1742327286005,0.03,124.3,124.29,48.2228]
[1742327287090,0.0001,124.32,124.29,48.2228]
[1742327287409,0.0001,124.32,124.29,49.42921796]
[1742327287586,0.0001,124.32,124.29,63.16963528]
[1742327287906,0.0001,124.32,124.29,49.42921796]
[1742327288406,0.0001,124.32,124.29,63.16963528]
[1742327289007,0.0001,124.32,124.29,49.42921796]
[1742327289400,0.0001,124.32,124.31,8.0444]
[1742327289707,0.0001,124.32,124.31,9.25059778]
[1742327290810,0.0001,124.32,124.31,8.0444]
[1742327297405,13.74051732,124.32,124.31,8.0444]
[1742327299332,13.74051732,124.32,124.29,8.1086]
[1742327299521,13.74041732,124.3,124.29,8.1086]
[1742327301327,13.74041732,124.3,124.29,20.063]
[1742327302806,13.74041732,124.3,124.29,0.063]
[1742327305036,22.27970203,124.3,124.29,0.063]
[1742327306827,0.14216157,124.29,124.23,0.063]
[1742327307029,13.74041732,124.24,124.23,0.063]
[1742327308634,13.74041732,124.24,124.23,20.063]
[1742327309947,13.74041732,124.25,124.23,20.063]
[1742327310438,7.14,124.28,124.23,20.063]
[1742327310622,13.74041732,124.26,124.24,8.0489]
[1742327310823,13.74041732,124.25,124.24,28.1712]
[1742327311420,7.16,124.28,124.24,28.1712]
[1742327311644,13.74041732,124.26,124.24,28.1712]
[1742327311837,13.74041732,124.25,124.24,28.1712]
[1742327312337,13.74041732,124.25,124.24,8.0489]
[1742327313343,7.16,124.28,124.24,8.0489]
[1742327313645,13.74041732,124.25,124.24,8.0489]
[1742327315242,13.74041732,124.26,124.24,8.0489]
[1742327315550,0.0001,124.32,124.29,1.6128]
[1742327315733,0.0001,124.32,124.3,7.16]
[1742327315934,13.74051732,124.32,124.3,7.16]
[1742327316137,13.74041732,124.31,124.3,7.16]
[1742327316335,13.74041732,124.31,124.29,20.0]
[1742327316924,13.74041732,124.3,124.29,20.0]
[1742327317342,13.74041732,124.31,124.3,8.045]
[1742327320252,0.0001,124.32,124.3,8.045]
[1742327320549,13.74041732,124.31,124.3,8.045]
[1742327321939,13.74041732,124.31,124.29,8.0454]
[1742327322143,13.74041732,124.3,124.29,8.0454]
[1742327323226,0.14216157,124.29,124.27,8.0469]
[1742327323524,13.74041732,124.28,124.27,8.0469]
[1742327323953,13.74041732,124.28,124.24,20.1849]
[1742327324138,13.74041732,124.25,124.24,20.1849]
[1742327324933,13.74041732,124.25,124.23,8.1125]
[1742327325140,13.74041732,124.24,124.23,8.1125]
[1742327326026,13.74041732,124.24,124.23,0.063]
[1742327326230,13.74041732,124.24,124.23,20.063]
[1742327328058,13.74041732,124.24,124.23,19.563]
[1742327328247,13.74041732,124.24,124.23,27.6125]
[1742327330130,13.74041732,124.24,124.2,0.063]
[1742327330332,13.74041732,124.22,124.21,20.0]
[1742327330532,13.74041732,124.23,124.21,20.0]
[1742327330746,13.74041732,124.23,124.21,19.5]
[1742327332146,13.74041732,124.23,124.22,8.0502]
[1742327333354,13.74041732,124.23,124.22,7.5502]
[1742327336259,13.74041732,124.23,124.22,7.0502]
[1742327336759,13.74041732,124.23,124.21,0.063]
[1742327336954,13.74041732,124.22,124.21,0.063]
[1742327337662,13.74041732,124.22,124.21,8.1138]
[1742327338760,0.42648471,124.21,124.19,8.0818]
[1742327338975,7.12,124.22,124.19,8.0818]
[1742327339171,13.74041732,124.2,124.19,8.0818]
[1742327339379,7.12,124.22,124.19,8.0818]
[1742327339553,13.74041732,124.21,124.19,8.0818]
[1742327339757,7.12,124.22,124.19,0.03]
[1742327339938,20.86041732,124.22,124.19,20.1604]
[1742327340138,13.74041732,124.21,124.19,0.03]
[1742327340345,13.74041732,124.2,124.19,0.03]
[1742327340643,7.12,124.22,124.19,0.03]
[1742327340644,13.74041732,124.21,124.19,0.03]
[1742327340975,13.74041732,124.2,124.18,7.5828]
[1742327341284,13.74041732,124.19,124.18,7.5828]
[1742327341564,13.74041732,124.2,124.18,7.5828]
[1742327341779,13.74041732,124.2,124.17,0.03]
[1742327345680,13.74041732,124.18,124.17,0.03]
[1742327345848,13.74041732,124.18,124.17,20.03]
[1742327346986,76.26857131,124.18,124.17,0.03]
[1742327347774,20.88041732,124.18,124.17,0.03]
[1742327356879,13.74041732,124.15,124.14,0.063]
[1742327361072,0.42648471,124.17,124.14,0.063]
[1742327361387,13.74041732,124.15,124.14,0.063]
[1742327363986,13.74041732,124.15,124.11,20.1434]
[1742327364189,13.74041732,124.13,124.11,20.1434]
[1742327364481,8.48008471,124.17,124.1,20.03]
[1742327364482,13.74041732,124.12,124.1,20.03]
[1742327364689,13.74041732,124.11,124.1,20.03]
[1742327365059,13.74041732,124.11,124.1,0.03]
[1742327365689,13.74041732,124.11,124.1,8.0877]
[1742327366788,13.74041732,124.11,124.1,7.5877]
[1742327371661,13.74041732,124.12,124.1,27.7327]
[1742327372796,13.74041732,124.11,124.1,27.7327]
[1742327373690,13.74041732,124.11,124.1,7.5877]
[1742327377179,13.74041732,124.11,124.09,28.0583]
[1742327377393,13.74041732,124.1,124.09,28.0583]
[1742327378300,13.74041732,124.11,124.09,48.2049]
[1742327378476,13.74041732,124.12,124.09,48.2049]
[1742327379204,13.74041732,124.13,124.09,61.94531732]
[1742327379575,13.74041732,124.13,124.09,48.2049]
[1742327380778,0.42648471,124.15,124.09,48.2049]
[1742327381179,13.74041732,124.12,124.09,48.2049]
[1742327381494,13.74041732,124.12,124.09,48.2349]
[1742327382390,0.063,124.13,124.09,48.2349]
[1742327382594,13.74041732,124.12,124.09,48.2349]
[1742327386494,13.74041732,124.11,124.09,48.2349]
[1742327387493,13.74041732,124.12,124.09,48.2349]
[1742327390214,0.063,124.13,124.1,13.74041732]
[1742327390506,13.74041732,124.15,124.1,13.74041732]
[1742327390804,13.74041732,124.15,124.1,14.94868042]
[1742327391297,13.74041732,124.15,124.1,13.74041732]